fUSD/lending_fUSD_20250811
["ID","MTS","AMOUNT","RATE_DAILY","PERIOD"]
[378537411,1754907033753,-1311.39,0.00017728,2]
[378537413,1754907033763,-2088.01550936,0.00017728,2]
[378537519,1754907037506,-152.504861,0.0001734,2]
[378537520,1754907037516,-200.0,0.00017358,2]
[378537521,1754907037526,-436.81390481,0.00017728,2]
[378537522,1754907037535,-167.63,0.0001773,2]
[378537523,1754907037546,-153.61,0.00017732,2]
[378537524,1754907037556,-153.61,0.00017741,2]
[378537525,1754907037565,-153.61,0.0001775,2]
[378537526,1754907037575,-153.61,0.0001776,2]
[378537527,1754907037585,-153.61,0.00017769,2]
[378537528,1754907037594,-153.61,0.00017778,2]
[378537529,1754907037604,-2618.2481025,0.00017783,2]
[378537530,1754907037614,-153.61,0.00017788,2]
[378537531,1754907037624,-153.61,0.00017797,2]
[378537532,1754907037634,-153.61,0.00017806,2]
[378537533,1754907037643,-153.61,0.00017816,2]
[378537534,1754907037651,-153.61,0.00017825,2]
[378537535,1754907037662,-153.61,0.00017834,2]
[378537536,1754907037674,-532.18,0.00017836,2]
[378537537,1754907037685,-2715.12328229,0.00017838,2]
[378537538,1754907037695,-153.61,0.00017844,2]
[378537539,1754907037704,-250.0,0.00017852,2]
[378537540,1754907037714,-153.61,0.00017853,2]
[378537541,1754907037724,-153.61,0.00017862,2]
[378537542,1754907037734,-153.61,0.00017871,2]
[378537543,1754907037744,-153.61,0.00017881,2]
[378537544,1754907037753,-153.61,0.0001789,2]
[378537545,1754907037763,-2160.0198494,0.00017893,2]
[378537546,1754907037776,-538.47465368,0.00017893,2]
[378537547,1754907037902,-117.08834066,0.00017893,2]
[378537548,1754907037911,-1549.40988709,0.00017948,2]
[378537549,1754907037924,-631.14156635,0.00017948,2]
[378537550,1754907037936,-359.99999997,0.00017948,2]
[378537556,1754907038033,-379.20795554,0.00017948,2]
[378537558,1754907038047,-2916.14811427,0.00017971,2]
[378537711,1754907039510,-20983.85188573,0.00017971,2]
[378537741,1754907039799,-363.0,0.0001798,2]
[378537743,1754907039809,-283.66,0.00017983,2]
[378537745,1754907039819,-3027.79050709,0.00018003,2]
[378537747,1754907039829,-261.74,0.00018004,2]
[378537749,1754907039839,-309.4314345,0.00018017,2]
[378537753,1754907039867,-5578.5685655,0.00018017,2]
[378537755,1754907039877,-151.0,0.00018056,2]
[378537757,1754907039887,-2372.46955679,0.00018058,2]
[378537759,1754907039896,-1767.7,0.00018093,2]
[378537761,1754907039905,-600.0,0.00018098,2]
[378537763,1754907039914,-151.0,0.00018098,2]
[378537765,1754907039924,-151.0,0.00018098,2]
[378537767,1754907039934,-481.39,0.000181,2]
[378537770,1754907039944,-168.0,0.00018193,2]
[378537772,1754907039954,-150.0,0.00018353,2]
[378537774,1754907039965,-561.87187771,0.00018404,2]
[378537776,1754907039979,-20.36737,0.00018404,2]
[378537778,1754907039989,-300.0,0.0001848,2]
[378537780,1754907039998,-135.49159104,0.0001848,2]
[378537782,1754907040011,-114.50840896,0.0001848,2]
[378537784,1754907040020,-500.0,0.0001848,2]
[378537786,1754907040029,-2500.0,0.0001848,2]
[378537788,1754907040039,-300.0,0.0001848,2]
[378537790,1754907040049,-500.0,0.0001848,2]
[378537792,1754907040060,-300.0,0.00018509,2]
[378537794,1754907040069,-600.0,0.00018646,2]
[378537796,1754907040078,-151.0,0.00018646,2]
[378537798,1754907040087,-154.64160342,0.00018646,2]
[378537800,1754907040097,-420.0,0.00018661,2]
[378537802,1754907040106,-155.38,0.00018667,2]
[378537804,1754907040115,-1680.0,0.00018753,2]
[378537806,1754907040124,-1273.00243,0.0001877,2]
[378537808,1754907040134,-300.0,0.00018796,2]
[378537810,1754907040145,-250.0,0.00018796,2]
[378537812,1754907040155,-500.0,0.00018796,2]
[378537814,1754907040165,-300.0,0.00018796,2]
[378537816,1754907040174,-2186.181,0.000188,2]
[378537818,1754907040184,-151.085,0.000188,2]
[378537820,1754907040194,-200.0,0.00018814,2]
[378537822,1754907040203,-1188.9208,0.00018858,2]
[378537824,1754907040213,-261.74,0.00018861,2]
[378537826,1754907040223,-642.49147013,0.00018873,2]
[378537828,1754907040232,-255.98506583,0.00018873,2]
[378537830,1754907040242,-642.49147008,0.00018876,2]
[378537832,1754907040252,-20776.05504036,0.00018876,2]
[378537857,1754907040618,-392.37617574,0.00018876,2]
[378538087,1754907042931,-8223.7499987,0.00018876,2]
[378538093,1754907042979,-1356.95,0.00018876,2]
[378538294,1754907045619,-15754.12057201,0.00018876,2]
[378538317,1754907045832,-514.0,0.00016891,2]
[378538319,1754907045842,-6719.84709289,0.00018876,2]
[378538321,1754907045851,-239.84119403,0.00018877,2]
[378538323,1754907045860,-642.49147008,0.00018879,2]
[378538325,1754907045870,-166.66666666,0.0001888,2]
[378538327,1754907045879,-642.49147008,0.00018882,2]
[378538329,1754907045889,-642.49147008,0.00018885,2]
[378538331,1754907045899,-642.49147008,0.00018888,2]
[378538333,1754907045908,-1889.9358366,0.0001889,2]
[378538335,1754907045919,-642.49147008,0.00018891,2]
[378538337,1754907045929,-4547.6654631,0.00018894,2]
[378538339,1754907045938,-642.49147008,0.00018894,2]
[378538341,1754907045948,-642.49147008,0.00018897,2]
[378538343,1754907045958,-2000.0,0.000189,2]
[378538345,1754907045969,-190.67093634,0.000189,2]
[378538347,1754907045981,-642.49147008,0.000189,2]
[378538349,1754907045991,-160.0,0.00018919,2]
[378538351,1754907046000,-1491.30447232,0.00018919,2]
[378538353,1754907046010,-359.76179104,0.00018919,2]
[378538355,1754907046021,-111605.1164588,0.00018922,2]
[378538358,1754907046031,-186.69697013,0.00018944,2]
[378538359,1754907046040,-41016.36285061,0.00018944,2]
[378538361,1754907046050,-731709.31121035,0.00018944,2]
[378538363,1754907046060,-22644.7806354,0.00018944,2]
[378538365,1754907046069,-186.69697013,0.00018945,2]
[378538367,1754907046079,-6196.21002608,0.00018948,2]
[378538369,1754907046088,-186.69697013,0.00018949,2]
[378538371,1754907046097,-309.87175975,0.0001895,2]
[378538373,1754907046107,-150.0,0.0001895,2]
[378538374,1754907046116,-500.0,0.0001895,2]
[378538375,1754907046127,-500.0,0.0001895,2]
[378538376,1754907046137,-150.0,0.0001895,2]
[378538377,1754907046147,-500.0,0.0001895,2]
[378538378,1754907046156,-150.0,0.0001895,2]
[378538379,1754907046165,-298.41839041,0.0001895,2]
[378538380,1754907046174,-150.0,0.0001895,2]
[378538381,1754907046183,-150.0,0.0001895,2]
[378538382,1754907046192,-157.03747597,0.0001895,2]
[378538383,1754907046201,-150.0,0.0001895,2]
[378538384,1754907046210,-500.0,0.0001895,2]
[378538385,1754907046219,-500.0,0.0001895,2]
[378538386,1754907046228,-500.0,0.0001895,2]
[378538387,1754907046237,-500.0,0.0001895,2]
[378538388,1754907046246,-500.0,0.0001895,2]
[378538390,1754907046256,-270.02095865,0.0001895,2]
[378538392,1754907046266,-151.37614525,0.0001895,2]
[378538395,1754907046276,-500.0,0.0001895,2]
[378538397,1754907046285,-500.0,0.0001895,2]
[378538399,1754907046294,-150.0,0.0001895,2]
[378538401,1754907046304,-309.87175975,0.00018951,2]
[378538403,1754907046313,-966.14906912,0.00018952,2]
[378538405,1754907046322,-506.13784008,0.00018953,2]
[378538407,1754907046331,-506.13784008,0.00018953,2]
[378538409,1754907046343,-248.22605613,0.00018957,2]
[378538411,1754907046352,-248.22605613,0.00018958,2]
[378538413,1754907046361,-1273.00243,0.00018958,2]
[378538415,1754907046371,-1273.00243,0.00018958,2]
[378538416,1754907046380,-1273.00243,0.00018958,2]
[378538417,1754907046389,-1273.00243,0.00018958,2]
[378538418,1754907046399,-1273.00243,0.00018958,2]
[378538419,1754907046408,-309.87175975,0.00018959,2]
[378538420,1754907046417,-6196.21002608,0.0001896,2]
[378538421,1754907046427,-1918.08875222,0.00018961,2]
[378538422,1754907046436,-248.22605613,0.00018961,2]
[378538423,1754907046446,-6196.21002608,0.00018961,2]
[378538424,1754907046456,-168.27613485,0.00018963,2]
[378538425,1754907046465,-151.52,0.00018963,2]
[378538426,1754907046474,-151.52,0.00018963,2]
[378538427,1754907046483,-151.52,0.00018964,2]
[378538428,1754907046493,-6196.21002608,0.00018964,2]
[378538429,1754907046502,-186.69697013,0.00018964,2]
[378538430,1754907046511,-309.87175975,0.00018964,2]
[378538431,1754907046521,-2541.9320925,0.00018967,2]
[378538432,1754907046530,-977.8225623,0.00018967,2]
[378538433,1754907046539,-1743.2305124,0.00018968,2]
[378538434,1754907046549,-500.0,0.00018972,2]
[378538435,1754907046558,-500.0,0.00018973,2]
[378538436,1754907046567,-500.0,0.00018973,2]
[378538437,1754907046576,-563.46608371,0.00018973,2]
[378538438,1754907046585,-485.90364834,0.00018973,2]
[378538439,1754907046594,-500.0,0.00018973,2]
[378538440,1754907046604,-500.0,0.00018973,2]
[378538441,1754907046614,-144703.03647535,0.00018973,2]
[378538442,1754907046623,-500.0,0.00018974,2]
[378538443,1754907046633,-500.0,0.00018974,2]
[378538444,1754907046642,-500.0,0.00018974,2]
[378538446,1754907046652,-500.0,0.00018974,2]
[378538448,1754907046662,-500.0,0.00018974,2]
[378538450,1754907046671,-500.0,0.00018974,2]
[378538452,1754907046681,-500.0,0.00018974,2]
[378538454,1754907046690,-500.0,0.00018974,2]
[378538456,1754907046699,-500.0,0.00018974,2]
[378538458,1754907046708,-500.0,0.00018974,2]
[378538460,1754907046717,-500.0,0.00018974,2]
[378538462,1754907046726,-500.0,0.00018974,2]
[378538464,1754907046735,-500.0,0.00018974,2]
[378538466,1754907046745,-500.0,0.00018974,2]
[378538468,1754907046754,-500.0,0.00018974,2]
[378538470,1754907046764,-500.0,0.00018974,2]
[378538472,1754907046773,-500.0,0.00018974,2]
[378538474,1754907046783,-500.0,0.00018974,2]
[378538475,1754907046794,-500.0,0.00018974,2]
[378538477,1754907046803,-500.0,0.00018974,2]
[378538479,1754907046812,-500.0,0.00018974,2]
[378538481,1754907046821,-500.0,0.00018974,2]
[378538483,1754907046830,-500.0,0.00018974,2]
[378538485,1754907046840,-500.0,0.00018974,2]
[378538487,1754907046850,-500.0,0.00018974,2]
[378538489,1754907046859,-500.0,0.00018974,2]
[378538491,1754907046868,-500.0,0.00018974,2]
[378538493,1754907046877,-500.0,0.00018974,2]
[378538495,1754907046887,-500.0,0.00018974,2]
[378538497,1754907046898,-500.0,0.00018974,2]
[378538499,1754907046907,-500.0,0.00018974,2]
[378538501,1754907046916,-500.0,0.00018974,2]
[378538503,1754907046925,-500.0,0.00018974,2]
[378538505,1754907046934,-500.0,0.00018974,2]
[378538507,1754907046943,-500.0,0.00018974,2]
[378538509,1754907046953,-500.0,0.00018974,2]
[378538511,1754907046962,-500.0,0.00018974,2]
[378538513,1754907046975,-500.0,0.00018974,2]
[378538515,1754907046984,-500.0,0.00018974,2]
[378538517,1754907046993,-500.0,0.00018974,2]
[378538519,1754907047002,-500.0,0.00018974,2]
[378538521,1754907047011,-500.0,0.00018974,2]
[378538523,1754907047022,-500.0,0.00018974,2]
[378538525,1754907047031,-500.0,0.00018974,2]
[378538527,1754907047041,-500.0,0.00018974,2]
[378538529,1754907047051,-500.0,0.00018974,2]
[378538531,1754907047061,-500.0,0.00018974,2]
[378538533,1754907047070,-500.0,0.00018974,2]
[378538535,1754907047079,-500.0,0.00018974,2]
[378538537,1754907047088,-500.0,0.00018974,2]
[378538539,1754907047097,-500.0,0.00018974,2]
[378538541,1754907047107,-500.0,0.00018974,2]
[378538543,1754907047116,-500.0,0.00018974,2]
[378538545,1754907047125,-500.0,0.00018974,2]
[378538547,1754907047135,-500.0,0.00018974,2]
[378538549,1754907047145,-500.0,0.00018974,2]
[378538551,1754907047154,-500.0,0.00018974,2]
[378538553,1754907047163,-500.0,0.00018974,2]
[378538555,1754907047173,-412.88,0.00018974,2]
[378538557,1754907047182,-1000.0,0.00018974,2]
[378538559,1754907047192,-1000.0,0.00018974,2]
[378538561,1754907047201,-1000.0,0.00018974,2]
[378538563,1754907047211,-1000.0,0.00018974,2]
[378538565,1754907047221,-1000.0,0.00018974,2]
[378538567,1754907047229,-500.0,0.00018974,2]
[378538569,1754907047238,-500.0,0.00018974,2]
[378538571,1754907047247,-500.0,0.00018974,2]
[378538573,1754907047256,-500.0,0.00018974,2]
[378538576,1754907047270,-500.0,0.00018974,2]
[378538579,1754907047286,-333.81,0.00018974,2]
[378538581,1754907047302,-72245.84803596,0.00018974,2]
[378538583,1754907047316,-24913.11708189,0.00018974,2]
[378538586,1754907047331,-179.94000802,0.00018976,2]
[378538588,1754907047345,-177.10024815,0.00018976,2]
[378538591,1754907047359,-506.13784008,0.00018976,2]
[378538593,1754907047374,-2394.67785402,0.00018977,2]
[378538596,1754907047388,-2979.90298698,0.00018977,2]
[378538598,1754907047401,-1918.08875222,0.00018977,2]
[378538601,1754907047416,-5513.82314204,0.00018978,2]
[378538603,1754907047430,-98327.560869,0.00018978,2]
[378538606,1754907047445,-5513.82314198,0.00018978,2]
[378538609,1754907047460,-903.22186472,0.00018978,2]
[378538611,1754907047473,-5513.82314204,0.0001898,2]
[378538614,1754907047488,-205.2837154,0.0001898,2]
[378538616,1754907047502,-506.13784008,0.0001898,2]
[378538619,1754907047515,-2394.67785402,0.00018981,2]
[378538621,1754907047530,-150.0,0.00018981,2]
[378538624,1754907047544,-179.94000802,0.00018982,2]
[378538626,1754907047558,-5513.82314204,0.00018982,2]
[378538629,1754907047571,-1602.42701406,0.00018982,2]
[378538631,1754907047584,-248.22605613,0.00018982,2]
[378538633,1754907047595,-186.69697013,0.00018982,2]
[378538636,1754907047608,-5959.80597381,0.00018983,2]
[378538638,1754907047624,-2042.30893948,0.00018983,2]
[378538641,1754907047636,-2394.67785402,0.00018983,2]
[378538643,1754907047647,-205.2837154,0.00018983,2]
[378538645,1754907047659,-2482.19086491,0.00018984,2]
[378538646,1754907047674,-903.22186472,0.00018984,2]
[378538647,1754907047688,-5959.80597381,0.00018985,2]
[378538648,1754907047699,-903.22186472,0.00018985,2]
[378538649,1754907047712,-2922.07279034,0.00018985,2]
[378538650,1754907047725,-5959.80597381,0.00018985,2]
[378538651,1754907047737,-151.52,0.00018986,2]
[378538652,1754907047749,-151.52,0.00018986,2]
[378538653,1754907047771,-151.52,0.00018986,2]
[378538654,1754907047783,-273432.62680422,0.00018986,2]
[378538655,1754907047796,-179.94000802,0.00018986,2]
[378538656,1754907047809,-151.0,0.00018986,2]
[378538657,1754907047822,-216.042072,0.00018986,2]
[378538658,1754907047835,-216.042072,0.00018986,2]
[378538659,1754907047848,-3361.95471577,0.00018986,2]
[378538660,1754907047861,-208.59784234,0.00018986,2]
[378538661,1754907047874,-186.43983318,0.00018986,2]
[378538662,1754907047886,-154.40988942,0.00018986,2]
[378538663,1754907047899,-150.0,0.00018986,2]
[378538664,1754907047911,-151.96590132,0.00018986,2]
[378538665,1754907047924,-183.7560707,0.00018986,2]
[378538666,1754907047937,-2979.90298698,0.00018987,2]
[378538667,1754907047949,-2548.0695543,0.00018987,2]
[378538668,1754907047961,-980.1835021,0.00018987,2]
[378538669,1754907047976,-3801.83664119,0.00018987,2]
[378538670,1754907047988,-1774.2568838,0.00018987,2]
[378538671,1754907048001,-825.33032937,0.00018987,2]
[378538672,1754907048014,-825.33032937,0.00018988,2]
[378538674,1754907048027,-4241.71856662,0.00018988,2]
[378538676,1754907048040,-903.22186472,0.00018988,2]
[378538678,1754907048055,-6597.58328594,0.00018988,2]
[378538681,1754907048068,-98327.560869,0.00018988,2]
[378538683,1754907048081,-6196.21002608,0.00018988,2]
[378538685,1754907048095,-2979.90298698,0.00018989,2]
[378538686,1754907048108,-151.52,0.00018989,2]
[378538687,1754907048121,-4681.60049205,0.00018989,2]
[378538688,1754907048135,-142570.96725838,0.00018989,2]
[378538689,1754907048182,-1289.221303,0.00018989,2]
[378538691,1754907048198,-977.039657,0.00018989,2]
[378538693,1754907048214,-3278.1,0.00018989,2]
[378538731,1754907067705,337.09,0.00013699,2]
[378538734,1754907170706,-200.0,0.00017534,2]
[378538735,1754907198328,-800.0,0.00017534,2]
[378538736,1754907198353,-200.0,0.00017689,2]
[378538745,1754907675444,500.0,0.00025,120]
[378538746,1754907696590,500.0,0.00025,120]
[378538747,1754907725930,500.0,0.00025,120]
[378538748,1754907758864,298.09,0.00025,120]
[378538753,1754907767346,-258.95630861,0.0001685,2]
[378538754,1754907769586,-245.01604919,0.0001685,2]
[378538755,1754907772240,-10.0276422,0.0001685,2]
[378538787,1754908177667,250.0,0.00015,2]
[378538788,1754908206091,-202.0,0.000166,2]
[378538789,1754908206113,-87.9723578,0.000168,2]
[378538790,1754908208858,-320.35950277,0.000168,2]
[378538804,1754908231827,-91.66813943,0.000168,2]
[378538805,1754908231837,-300.0,0.00017,2]
[378538806,1754908231847,-500.0,0.00017065,2]
[378538807,1754908231856,-140.50317652,0.00017136,2]
[378538824,1754908237971,-29.85632348,0.00017136,2]
[378538825,1754908237980,-174.49,0.00017236,2]
[378538826,1754908237990,-1000.0,0.00017242,5]
[378538827,1754908237999,-500.0,0.00017249,2]
[378538828,1754908238009,-170.0,0.00017262,7]
[378538829,1754908238019,-1000.0,0.00017262,2]
[378538830,1754908238028,-435.26,0.00017292,2]
[378538831,1754908238038,-101.44367652,0.0001734,2]
[378538950,1754908239711,-172.86108384,0.0001734,2]
[378538952,1754908239720,-300.0,0.0001734,2]
[378538954,1754908239730,-1200.0,0.0001734,2]
[378538956,1754908239739,-446.69981615,0.00017341,2]
[378538977,1754908239928,-640.57670014,0.00017341,2]
[378539282,1754908242922,-337.56895316,0.00017341,2]
[378539288,1754908242980,-1192.09694797,0.00017341,2]
[378539586,1754908245796,-21283.05758258,0.00017341,2]
[378539588,1754908245806,-379.77,0.00017351,2]
[378539590,1754908245816,-544.47,0.00017397,2]
[378539592,1754908245826,-159.08,0.00017397,2]
[378539594,1754908245836,-266.0,0.000174,2]
[378539596,1754908245846,-5018.213339,0.000175,2]
[378539598,1754908245855,-15131.805747,0.000175,2]
[378539600,1754908245865,-231.28369723,0.00017508,2]
[378539602,1754908245874,-2612.84985817,0.0001754,7]
[378539604,1754908245888,-3.47399648,0.0001754,7]
[378539606,1754908245897,-202.0,0.000177,2]
[378539608,1754908245907,-729.87706111,0.00017719,2]
[378539610,1754908245917,-425.75,0.00017785,2]
[378539612,1754908245927,-1305.0,0.00017803,2]
[378539615,1754908245938,-150.0,0.00017854,2]
[378539616,1754908245948,-174.61919141,0.00017858,2]
[378539618,1754908245958,-49.99495106,0.00017858,2]
[378539625,1754908246011,-550.00504894,0.00017858,2]
[378539627,1754908246021,-160.0,0.00017858,2]
[378539629,1754908246031,-346.92554585,0.00017858,2]
[378539631,1754908246041,-178.23174452,0.00017858,2]
[378539633,1754908246052,-814.14999948,0.00017858,2]
[378542731,1754908382451,-334.46572486,0.00017016,2]
[378542732,1754908384857,-334.38488714,0.00017016,2]
[378542734,1754908409922,334.88,0.00013699,2]
[378542774,1754908655872,400.0,0.00024657,120]
[378542775,1754908655966,400.0,0.00024657,120]
[378542776,1754908656105,400.0,0.00024657,120]
[378542777,1754908656224,400.0,0.00024657,120]
[378542778,1754908656497,400.0,0.00024657,120]
[378542779,1754908656734,400.0,0.00024657,120]
[378542780,1754908656984,400.0,0.00024657,120]
[378542781,1754908657215,400.0,0.00024657,120]
[378542782,1754908657510,400.0,0.00024657,120]
[378542783,1754908657691,400.0,0.00024657,120]
[378542784,1754908657970,400.0,0.00024657,120]
[378542785,1754908658239,400.0,0.00024657,120]
[378542786,1754908658481,400.0,0.00024657,120]
[378542787,1754908659082,400.0,0.00024657,120]
[378542788,1754908659155,400.0,0.00024657,120]
[378542789,1754908659588,400.0,0.00024657,120]
[378542790,1754908659899,400.0,0.00024657,120]
[378542791,1754908660501,342.57014822,0.00024657,120]
[378542796,1754908705435,-192.33151336,0.00016632,2]
[378542798,1754908747323,-268.0,0.0001653,2]
[378542799,1754908751116,-47.35777627,0.0001653,2]
[378542800,1754908751141,-243.92334324,0.0001653,2]
[378542801,1754908752775,-158.27,0.0001653,2]
[378542803,1754908757053,-292.0299204,0.0001653,2]
[378542804,1754908759221,-228.9700796,0.0001653,2]
[378542805,1754908761362,-170.0,0.0001653,2]
[378542807,1754908784728,-151.0,0.00016447,2]
[378542811,1754908804904,400.0,0.00016488,5]
[378542812,1754908809170,-151.0,0.00016447,2]
[378542813,1754908810186,-257.43412893,0.00016447,2]
[378542814,1754908812265,-170.73,0.00016447,2]
[378542815,1754908814535,-279.11353317,0.00016447,2]
[378542816,1754908820043,-197.95705105,0.00016102,2]
[378542817,1754908869889,-217.94301724,0.00015825,2]
[378542818,1754908872593,-162.18129394,0.00015825,2]
[378542819,1754908877332,-362.74053215,0.00015825,2]
[378542820,1754908878928,-283.75303131,0.00015825,2]
[378542821,1754908894347,183.07,0.00013075,2]
[378542822,1754908904645,-240.11503667,0.00015779,2]
[378542823,1754908905761,1255.47392908,0.00025,120]
[378542825,1754908928476,-500.0,0.00015779,2]
[378542826,1754908930353,-202.3621875,0.00015725,2]
[378542827,1754908930375,-81.39084381,0.00015779,2]
[378542828,1754908931948,-290.82773769,0.00015779,2]
[378542829,1754908933716,-508.44713633,0.00015779,2]
[378542830,1754908935794,170.0,0.00015702,7]
[378542831,1754908936358,-65.31216561,0.00015779,2]
[378542832,1754908936371,-71.87707989,0.00015779,2]
[378542836,1754908970544,-300.0,0.00015755,2]
[378542837,1754908972794,-155.13,0.00015724,2]
[378542838,1754908972816,-94.87,0.00015755,2]
[378542839,1754908974341,-151.0,0.00015755,2]
[378542840,1754908977108,-168.61,0.00015755,2]
[378542841,1754908978622,-372.848,0.00015755,2]
[378542842,1754908981248,-300.0,0.00015755,2]
[378542843,1754908986510,-189.58721,0.00015645,2]
[378542844,1754908989142,-269.26910696,0.00015645,2]
[378542845,1754908991886,-185.28812589,0.00015645,2]
[378542846,1754908995029,-231.51671996,0.00015645,2]
[378542847,1754908996663,-265.8723679,0.00015645,2]
[378542848,1754908998141,-216.8289913,0.00015645,2]
[378542849,1754909000250,-216.82899129,0.00015645,2]
[378542850,1754909001917,-165.34147619,0.00015645,2]
[378542851,1754909005765,-235.55,0.00015645,2]
[378542852,1754909008618,-185.70919262,0.00015645,2]
[378542853,1754909010406,-260.04811075,0.00015645,2]
[378542854,1754909012994,-285.44203727,0.00015645,2]
[378542855,1754909016276,-200.0,0.00015645,2]
[378542856,1754909017776,-193.76868065,0.00015645,2]
[378542857,1754909020190,-300.00334614,0.00015645,2]
[378542858,1754909024236,-236.70653123,0.00015645,2]
[378542860,1754909026599,-195.55188925,0.00015645,2]
[378542861,1754909028239,-196.33822289,0.00015645,2]
[378542862,1754909030587,-300.0,0.00015645,2]
[378542863,1754909032724,-439.42671831,0.00015645,2]
[378542864,1754909037518,-258.73803656,0.00015645,2]
[378542865,1754909041346,-294.08478588,0.00015645,2]
[378542866,1754909048094,-1092.15465697,0.00015652,2]
[378542867,1754909049241,-273.4139956,0.00015652,2]
[378542869,1754909051637,-300.0,0.00015652,2]
[378542870,1754909054109,-472.8577481,0.00015652,2]
[378542871,1754909055843,-180.89799403,0.00015652,2]
[378542872,1754909058931,-202.26460381,0.00015652,2]
[378542873,1754909060039,-305.03863114,0.00015652,2]
[378542874,1754909063166,-246.40930924,0.00015652,2]
[378542875,1754909065854,-154.43005064,0.00015652,2]
[378542876,1754909068243,-438.34758652,0.00015574,2]
[378542877,1754909071983,-269.9529417,0.00015574,2]
[378542878,1754909078581,-300.0,0.00015574,2]
[378542879,1754909082472,-163.97124584,0.00015574,2]
[378542880,1754909084006,-174.01568175,0.00015574,2]
[378542883,1754909088926,-300.0,0.00015574,2]
[378542884,1754909090631,-205.80443221,0.00015574,2]
[378542885,1754909092937,-294.84551715,0.00015546,2]
[378542886,1754909095111,-230.73089304,0.00015546,2]
[378542887,1754909097848,-274.28105859,0.00015546,2]
[378542888,1754909104395,-200.14253122,0.00015546,2]
[378542889,1754909104419,-549.17458815,0.00015574,2]
[378542890,1754909108281,-545.56994936,0.00015523,2]
[378542892,1754909110589,-281.65450767,0.00015523,2]
[378542893,1754909113352,-323.64554297,0.00015523,2]
[378542894,1754909113373,-15.20350367,0.00015574,2]
[378542895,1754909116431,-282.47745944,0.00015574,2]
[378542896,1754909118301,-30.90576572,0.00015574,2]
[378542897,1754909118326,-300.0,0.00015651,2]
[378542898,1754909118350,-126.56866409,0.00015651,2]
[378542899,1754909120327,-173.43133591,0.00015651,2]
[378542900,1754909120351,-121.33558098,0.00015651,2]
[378542901,1754909124625,-303.32509461,0.00015651,2]
[378542902,1754909126593,-319.35303106,0.00015651,2]
[378542903,1754909128785,-155.18227058,0.00015651,2]
[378542904,1754909131022,-300.80402277,0.00015651,2]
[378542905,1754909131045,-286.0,0.00015651,2]
[378542906,1754909131068,-106.83234382,0.00015651,2]
[378542907,1754909135141,-103.86406732,0.00015651,2]
[378542908,1754909135164,-173.09063017,0.00015651,2]
[378542913,1754909138537,-84.28192823,0.00015651,2]
[378542914,1754909138560,-165.13596661,0.00015651,2]
[378542915,1754909140253,-1.32355642,0.00015651,2]
[378542916,1754909140275,-215.74901124,0.00015652,2]
[378542917,1754909141997,-692.64541795,0.00015573,2]
[378542918,1754909144778,-213.36889431,0.00015573,2]
[378542927,1754909148419,-51.08925874,0.00015573,2]
[378542928,1754909148442,-263.20154864,0.00015652,2]
[378542930,1754909151310,-300.0,0.00015652,2]
[378542931,1754909153645,-240.232003,0.00015652,2]
[378542932,1754909155132,-153.09979508,0.00015652,2]
[378542933,1754909157316,-181.81063905,0.00015652,2]
[378542934,1754909158974,-191.70919262,0.00015652,2]
[378542935,1754909161775,-296.57745615,0.00015652,2]
[378542936,1754909164398,-215.6860044,0.00015652,2]
[378542938,1754909168857,-284.19684316,0.00015652,2]
[378542939,1754909171650,-348.2360044,0.00015652,2]
[378542940,1754909176224,-290.0924992,0.00015652,2]
[378542941,1754909178673,-294.31555285,0.00015652,2]
[378542942,1754909181587,-188.0,0.00015652,2]